fUSD/lending_fUSD_20250702
["ID","MTS","AMOUNT","RATE_DAILY","PERIOD"]
[369024747,1751435476795,-758.38,0.00017697,2]
[369024748,1751435476804,-1168.3,0.00017697,2]
[369024750,1751435476813,-174.71,0.00017697,2]
[369024751,1751435476823,-1023.2,0.00017697,2]
[369024753,1751435476832,-1065.59,0.00017697,2]
[369024755,1751435476841,-1917.48,0.00017697,2]
[369024756,1751435476850,-490.0,0.00017697,2]
[369024758,1751435476860,-2167.8,0.00017697,2]
[369024759,1751435476869,-490.0,0.00017697,2]
[369024761,1751435476878,-970.14,0.00017697,2]
[369024763,1751435476887,-490.0,0.00017697,2]
[369024764,1751435476897,-560.22,0.00017697,2]
[369024766,1751435476906,-593.22,0.00017697,2]
[369024768,1751435476917,-581.91,0.00017697,2]
[369024769,1751435476927,-490.0,0.00017697,2]
[369024771,1751435476936,-2155.81,0.00017697,2]
[369024772,1751435476945,-490.0,0.00017697,2]
[369024774,1751435476955,-784.78,0.00017697,2]
[369024775,1751435476964,-803.54,0.00017697,2]
[369024777,1751435476973,-830.7,0.00017697,2]
[369024779,1751435476983,-723.17,0.00017697,2]
[369024780,1751435476992,-2957.3,0.00017697,2]
[369024782,1751435477002,-490.0,0.00017697,2]
[369024784,1751435477011,-1308.41,0.00017697,2]
[369024785,1751435477021,-2299.52,0.00017697,2]
[369024787,1751435477030,-2335.61,0.00017697,2]
[369024789,1751435477039,-490.0,0.00017697,2]
[369024790,1751435477048,-152.049576,0.00017697,2]
[369024792,1751435477058,-5582.15,0.00017697,2]
[369024793,1751435477067,-183.910635,0.00017697,2]
[369024795,1751435477076,-199.714893,0.00017697,2]
[369024797,1751435477085,-926.99,0.00017697,2]
[369024798,1751435477094,-1700.35,0.00017697,2]
[369024800,1751435477107,-2554.81,0.00017697,2]
[369024801,1751435477116,-594.48,0.00017697,2]
[369024803,1751435477127,-901.97,0.00017697,2]
[369024805,1751435477141,-909.28,0.00017697,2]
[369024806,1751435477150,-1269.02,0.00017697,2]
[369024808,1751435477160,-2515.76,0.00017697,2]
[369024810,1751435477169,-2931.23,0.00017697,2]
[369024811,1751435477178,-1060.18,0.00017697,2]
[369024813,1751435477187,-490.0,0.00017697,2]
[369024815,1751435477197,-2225.59,0.00017697,2]
[369024816,1751435477206,-490.0,0.00017697,2]
[369024818,1751435477215,-981.9,0.00017697,2]
[369024819,1751435477224,-490.0,0.00017697,2]
[369024821,1751435477233,-1572.95,0.00017697,2]
[369024823,1751435477243,-1333.82,0.00017697,2]
[369024824,1751435477252,-381.65874984,0.00017697,2]
[369024826,1751435477262,-490.0,0.00017697,2]
[369024827,1751435477271,-490.0,0.00017697,2]
[369024829,1751435477280,-490.0,0.00017697,2]
[369024831,1751435477290,-1540.3,0.00017697,2]
[369024832,1751435477299,-1251.88,0.00017697,2]
[369024834,1751435477308,-1622.31,0.00017697,2]
[369024836,1751435477317,-529.38,0.00017697,2]
[369024837,1751435477327,-490.0,0.00017697,2]
[369024839,1751435477336,-2322.4,0.00017697,2]
[369024841,1751435477346,-1048.16,0.00017697,2]
[369024842,1751435477355,-599.84,0.00017697,2]
[369024844,1751435477365,-2167.78,0.00017697,2]
[369024845,1751435477374,-754.18,0.00017697,2]
[369024847,1751435477383,-807.96,0.00017697,2]
[369024849,1751435477394,-1717.43,0.00017697,2]
[369024851,1751435477407,-1722.96,0.00017697,2]
[369024852,1751435477416,-9593.16,0.00017697,2]
[369024854,1751435477425,-697.77,0.00017697,2]
[369024855,1751435477435,-1150.89,0.00017697,2]
[369024857,1751435477444,-3384.55,0.00017697,2]
[369024859,1751435477455,-490.0,0.00017697,2]
[369024860,1751435477464,-490.0,0.00017697,2]
[369024862,1751435477474,-7608.88,0.00017697,2]
[369024863,1751435477485,-1074.93,0.00017697,2]
[369024865,1751435477495,-2870.33,0.00017697,2]
[369024867,1751435477505,-2081.14,0.00017697,2]
[369024868,1751435477514,-500.56,0.00017697,2]
[369024870,1751435477523,-410.88387362,0.00017697,2]
[369024871,1751435477532,-490.0,0.00017697,2]
[369024873,1751435477542,-1421.01,0.00017697,2]
[369024875,1751435477551,-596.03,0.00017697,2]
[369024876,1751435477560,-899.23,0.00017697,2]
[369024878,1751435477569,-490.0,0.00017697,2]
[369024879,1751435477579,-950.5,0.00017697,2]
[369024881,1751435477587,-490.0,0.00017697,2]
[369024883,1751435477597,-490.0,0.00017697,2]
[369024884,1751435477607,-490.0,0.00017697,2]
[369024886,1751435477616,-839.94,0.00017697,2]
[369024887,1751435477625,-490.0,0.00017697,2]
[369024889,1751435477635,-1791.3,0.00017697,2]
[369024891,1751435477644,-637.03,0.00017697,2]
[369024892,1751435477653,-2025.73,0.00017697,2]
[369024894,1751435477663,-490.0,0.00017697,2]
[369024896,1751435477673,-1119.85,0.00017697,2]
[369024897,1751435477682,-601.68,0.00017697,2]
[369024899,1751435477691,-4467.12,0.00017697,2]
[369024900,1751435477700,-1001.77,0.00017697,2]
[369024902,1751435477710,-1787.88,0.00017697,2]
[369024904,1751435477719,-490.0,0.00017697,2]
[369024906,1751435477729,-995.77,0.00017697,2]
[369024908,1751435477739,-252.0,0.00017746,2]
[369024909,1751435477749,-490.0,0.00017749,2]
[369024910,1751435477759,-1500.0,0.00017768,2]
[369024911,1751435477769,-17072.93590173,0.00017772,2]
[369024912,1751435477779,-150.0,0.00017781,2]
[369024913,1751435477788,-712.98,0.00017781,2]
[369024914,1751435477798,-2597.33840215,0.00017786,2]
[369024915,1751435477807,-603.21968783,0.00017787,2]
[369024916,1751435477817,-252.0,0.00017789,2]
[369024917,1751435477827,-252.0,0.00017789,2]
[369024918,1751435477837,-500.0,0.00017795,2]
[369024919,1751435477848,-500.0,0.00017795,2]
[369024920,1751435477857,-490.0,0.00017796,2]
[369024921,1751435477867,-490.0,0.00017796,2]
[369024922,1751435477876,-500.0,0.00017796,2]
[369024923,1751435477886,-910.17,0.00017796,2]
[369024924,1751435477895,-384.01,0.00017797,2]
[369024925,1751435477905,-490.0,0.00017797,2]
[369024926,1751435477914,-490.0,0.00017797,2]
[369024927,1751435477923,-490.0,0.00017797,2]
[369024928,1751435477933,-490.0,0.00017797,2]
[369024929,1751435477942,-490.0,0.00017797,2]
[369024930,1751435477952,-490.0,0.00017797,2]
[369024932,1751435477961,-490.0,0.00017797,2]
[369024933,1751435477971,-490.0,0.00017797,2]
[369024934,1751435477981,-490.0,0.00017797,2]
[369024936,1751435477990,-249.33,0.00017797,2]
[369024937,1751435477999,-490.0,0.00017797,2]
[369024939,1751435478009,-490.0,0.00017797,2]
[369024941,1751435478018,-490.0,0.00017797,2]
[369024943,1751435478027,-490.0,0.00017797,2]
[369024945,1751435478037,-490.0,0.00017797,2]
[369024947,1751435478047,-490.0,0.00017797,2]
[369024949,1751435478056,-889.32,0.00017797,2]
[369024951,1751435478066,-490.0,0.00017797,2]
[369024953,1751435478075,-490.0,0.00017797,2]
[369024955,1751435478085,-490.0,0.00017797,2]
[369024957,1751435478094,-614.31,0.00017797,2]
[369024959,1751435478103,-490.0,0.00017797,2]
[369024961,1751435478112,-490.0,0.00017797,2]
[369024963,1751435478122,-490.0,0.00017797,2]
[369024965,1751435478131,-490.0,0.00017797,2]
[369024967,1751435478140,-490.0,0.00017797,2]
[369024969,1751435478149,-518.69224621,0.00017797,2]
[369024971,1751435478159,-490.0,0.00017797,2]
[369024973,1751435478168,-490.0,0.00017797,2]
[369024975,1751435478177,-490.0,0.00017797,2]
[369024977,1751435478187,-503.55,0.00017797,2]
[369024979,1751435478196,-490.0,0.00017797,2]
[369024981,1751435478206,-490.0,0.00017797,2]
[369024983,1751435478215,-490.0,0.00017797,2]
[369024985,1751435478224,-515.41,0.00017797,2]
[369024987,1751435478234,-490.0,0.00017797,2]
[369024989,1751435478243,-542.25,0.00017797,2]
[369024991,1751435478253,-490.0,0.00017797,2]
[369024993,1751435478263,-497.55667017,0.00017797,2]
[369024995,1751435478272,-849.93,0.00017797,2]
[369024997,1751435478281,-970.56,0.00017797,2]
[369024999,1751435478291,-490.0,0.00017797,2]
[369025001,1751435478300,-490.0,0.00017797,2]
[369025003,1751435478309,-490.0,0.00017797,2]
[369025005,1751435478319,-490.0,0.00017797,2]
[369025007,1751435478328,-211.35,0.00017797,2]
[369025009,1751435478338,-490.0,0.00017797,2]
[369025011,1751435478347,-490.0,0.00017797,2]
[369025013,1751435478356,-490.0,0.00017797,2]
[369025015,1751435478365,-872.88,0.00017797,2]
[369025017,1751435478374,-490.0,0.00017797,2]
[369025018,1751435478383,-902.67,0.00017797,2]
[369025020,1751435478393,-490.0,0.00017797,2]
[369025022,1751435478403,-490.0,0.00017797,2]
[369025024,1751435478414,-493.54705252,0.00017797,2]
[369025026,1751435478423,-490.0,0.00017797,2]
[369025028,1751435478432,-490.0,0.00017797,2]
[369025030,1751435478442,-587.95,0.00017797,2]
[369025032,1751435478452,-490.0,0.00017797,2]
[369025034,1751435478462,-490.0,0.00017797,2]
[369025036,1751435478472,-490.0,0.00017797,2]
[369025038,1751435478482,-490.0,0.00017797,2]
[369025040,1751435478492,-565.78,0.00017797,2]
[369025042,1751435478501,-490.0,0.00017797,2]
[369025044,1751435478510,-490.0,0.00017797,2]
[369025046,1751435478519,-549.0,0.00017797,2]
[369025048,1751435478529,-490.0,0.00017797,2]
[369025050,1751435478538,-966.5,0.00017797,2]
[369025052,1751435478548,-447.11604146,0.00017797,2]
[369025054,1751435478557,-490.0,0.00017797,2]
[369025056,1751435478567,-490.0,0.00017797,2]
[369025058,1751435478576,-490.0,0.00017797,2]
[369025060,1751435478585,-782.85,0.00017797,2]
[369025062,1751435478595,-490.0,0.00017797,2]
[369025064,1751435478604,-665.24,0.00017797,2]
[369025066,1751435478613,-490.0,0.00017797,2]
[369025068,1751435478623,-582.15,0.00017797,2]
[369025070,1751435478632,-490.0,0.00017797,2]
[369025072,1751435478641,-333.84,0.00017797,2]
[369025074,1751435478651,-490.0,0.00017797,2]
[369025076,1751435478660,-490.0,0.00017797,2]
[369025078,1751435478669,-490.0,0.00017797,2]
[369025080,1751435478678,-574.01122099,0.00017797,2]
[369025082,1751435478688,-490.0,0.00017797,2]
[369025084,1751435478698,-490.0,0.00017797,2]
[369025086,1751435478707,-490.0,0.00017797,2]
[369025088,1751435478716,-490.0,0.00017797,2]
[369025090,1751435478726,-490.0,0.00017797,2]
[369025092,1751435478735,-719.15,0.00017797,2]
[369025093,1751435478744,-490.0,0.00017797,2]
[369025095,1751435478754,-490.0,0.00017797,2]
[369025097,1751435478764,-592.02,0.00017797,2]
[369025099,1751435478773,-490.0,0.00017797,2]
[369025101,1751435478784,-490.0,0.00017797,2]
[369025103,1751435478793,-490.0,0.00017797,2]
[369025105,1751435478802,-490.0,0.00017797,2]
[369025107,1751435478811,-490.0,0.00017797,2]
[369025109,1751435478821,-686.21,0.00017797,2]
[369025111,1751435478831,-735.78,0.00017797,2]
[369025113,1751435478840,-490.0,0.00017797,2]
[369025115,1751435478850,-490.0,0.00017797,2]
[369025117,1751435478860,-622.86,0.00017797,2]
[369025119,1751435478869,-915.06,0.00017797,2]
[369025121,1751435478879,-490.0,0.00017797,2]
[369025123,1751435478887,-678.95,0.00017797,2]
[369025125,1751435478897,-490.0,0.00017797,2]
[369025127,1751435478906,-1008.35,0.00017797,2]
[369025129,1751435478916,-750.66,0.00017797,2]
[369025130,1751435478925,-303.69326653,0.00017797,2]
[369025132,1751435478934,-1016.21,0.00017797,2]
[369025134,1751435478944,-1096.52,0.00017797,2]
[369025136,1751435478954,-490.0,0.00017797,2]
[369025138,1751435478963,-490.0,0.00017797,2]
[369025140,1751435478973,-692.82,0.00017797,2]
[369025142,1751435478982,-709.59,0.00017797,2]
[369025144,1751435478992,-800.52,0.00017797,2]
[369025146,1751435479001,-490.0,0.00017797,2]
[369025148,1751435479011,-300.0,0.00017797,2]
[369025150,1751435479021,-909.18,0.00017797,2]
[369025152,1751435479030,-490.0,0.00017797,2]
[369025154,1751435479039,-2008.55,0.00017797,2]
[369025156,1751435479049,-524.49,0.00017797,2]
[369025158,1751435479058,-4837.46,0.00017797,2]
[369025160,1751435479068,-490.0,0.00017797,2]
[369025162,1751435479077,-490.0,0.00017797,2]
[369025164,1751435479087,-926.62,0.00017797,2]
[369025166,1751435479096,-4330.05,0.00017797,2]
[369025168,1751435479106,-490.0,0.00017797,2]
[369025170,1751435479115,-4934.27,0.00017797,2]
[369025172,1751435479124,-636.16,0.00017797,2]
[369025173,1751435479134,-490.0,0.00017797,2]
[369025176,1751435479143,-774.48,0.00017797,2]
[369025177,1751435479153,-1048.04,0.00017797,2]
[369025179,1751435479162,-2525.8,0.00017797,2]
[369025181,1751435479172,-692.02,0.00017797,2]
[369025183,1751435479182,-2844.1,0.00017797,2]
[369025185,1751435479192,-712.6,0.00017797,2]
[369025187,1751435479201,-490.0,0.00017797,2]
[369025189,1751435479212,-490.0,0.00017797,2]
[369025191,1751435479221,-4564.22,0.00017797,2]
[369025193,1751435479231,-1700.12,0.00017797,2]
[369025195,1751435479240,-490.0,0.00017797,2]
[369025197,1751435479249,-5717.79,0.00017797,2]
[369025199,1751435479259,-490.0,0.00017797,2]
[369025201,1751435479267,-490.0,0.00017797,2]
[369025203,1751435479277,-490.0,0.00017797,2]
[369025205,1751435479286,-996.44,0.00017797,2]
[369025207,1751435479296,-490.0,0.00017797,2]
[369025209,1751435479306,-1000.0,0.00017797,2]
[369025211,1751435479316,-1414.35,0.00017797,2]
[369025213,1751435479326,-490.0,0.00017797,2]
[369025215,1751435479336,-490.0,0.00017797,2]
[369025217,1751435479346,-490.0,0.00017797,2]
[369025219,1751435479355,-724.85,0.00017797,2]
[369025221,1751435479365,-1107.99,0.00017797,2]
[369025223,1751435479375,-490.0,0.00017797,2]
[369025225,1751435479383,-490.0,0.00017797,2]
[369025227,1751435479393,-1008.42,0.00017797,2]
[369025229,1751435479403,-1390.88,0.00017797,2]
[369025231,1751435479414,-490.0,0.00017797,2]
[369025233,1751435479423,-1527.77,0.00017797,2]
[369025235,1751435479432,-613.11,0.00017797,2]
[369025237,1751435479442,-1145.31,0.00017797,2]
[369025239,1751435479451,-490.0,0.00017797,2]
[369025241,1751435479460,-2060.09,0.00017797,2]
[369025242,1751435479469,-1028.46,0.00017797,2]
[369025244,1751435479480,-490.0,0.00017797,2]
[369025246,1751435479490,-490.0,0.00017797,2]
[369025248,1751435479500,-9604.94,0.00017797,2]
[369025251,1751435479510,-1122.61,0.00017797,2]
[369025252,1751435479519,-490.0,0.00017797,2]
[369025254,1751435479529,-10466.64,0.00017797,2]
[369025256,1751435479539,-2463.77,0.00017797,2]
[369025259,1751435479548,-872.5,0.00017797,2]
[369025261,1751435479558,-490.0,0.00017797,2]
[369025280,1751435479735,-490.0,0.00017797,2]
[369025282,1751435479746,-1465.09,0.00017797,2]
[369025284,1751435479756,-3572.48,0.00017797,2]
[369025286,1751435479768,-490.0,0.00017797,2]
[369025288,1751435479777,-490.0,0.00017797,2]
[369025290,1751435479789,-757.03,0.00017797,2]
[369025292,1751435479799,-925.66,0.00017797,2]
[369025294,1751435479810,-490.0,0.00017797,2]
[369025296,1751435479819,-691.47,0.00017797,2]
[369025298,1751435479829,-490.0,0.00017797,2]
[369025300,1751435479841,-923.13,0.00017797,2]
[369025302,1751435479851,-7104.16,0.00017797,2]
[369025304,1751435479860,-490.0,0.00017797,2]
[369025306,1751435479869,-586.6,0.00017797,2]
[369025308,1751435479879,-1706.64,0.00017797,2]
[369025309,1751435479891,-1059.57,0.00017797,2]
[369025311,1751435479902,-490.0,0.00017797,2]
[369025314,1751435479912,-2003.3,0.00017797,2]
[369025315,1751435479922,-490.0,0.00017797,2]
[369025317,1751435479931,-490.0,0.00017797,2]
[369025319,1751435479941,-500.0,0.00017797,2]
[369025321,1751435479950,-798.99,0.00017797,2]
[369025323,1751435479962,-490.0,0.00017797,2]
[369025325,1751435479972,-505.27,0.00017797,2]
[369025327,1751435479981,-490.0,0.00017797,2]
[369025329,1751435479991,-1072.94,0.00017797,2]
[369025331,1751435480000,-1017.54,0.00017797,2]
[369025333,1751435480009,-1719.19,0.00017797,2]
[369025335,1751435480019,-919.73,0.00017797,2]
[369025337,1751435480028,-1798.63,0.00017797,2]
[369025339,1751435480037,-490.0,0.00017797,2]
[369025341,1751435480046,-1404.58,0.00017797,2]
[369025343,1751435480055,-490.0,0.00017797,2]
[369025345,1751435480064,-3437.66,0.00017797,2]
[369025347,1751435480074,-1417.14,0.00017797,2]
[369025349,1751435480083,-151.0,0.00017797,2]
[369025351,1751435480092,-490.0,0.00017797,2]
[369025352,1751435480102,-6109.35,0.00017797,2]
[369025354,1751435480111,-490.0,0.00017797,2]
[369025356,1751435480120,-517.68,0.00017797,2]
[369025358,1751435480129,-4865.12,0.00017797,2]
[369025360,1751435480139,-789.98,0.00017797,2]
[369025362,1751435480148,-630.68,0.00017797,2]
[369025364,1751435480157,-39405.51,0.00017797,2]
[369025366,1751435480167,-490.0,0.00017797,2]
[369025368,1751435480176,-490.0,0.00017797,2]
[369025370,1751435480186,-832.87,0.00017797,2]
[369025372,1751435480195,-490.0,0.00017797,2]
[369025374,1751435480205,-5493.49,0.00017797,2]
[369025376,1751435480214,-12925.9,0.00017797,2]
[369025378,1751435480223,-1245.48,0.00017797,2]
[369025380,1751435480233,-763.22,0.00017797,2]
[369025382,1751435480241,-490.0,0.00017798,2]
[369025384,1751435480251,-490.0,0.00017798,2]
[369025386,1751435480260,-505.03,0.00017798,2]
[369025388,1751435480270,-490.0,0.00017798,2]
[369025390,1751435480279,-234.39361966,0.00017798,2]
[369025392,1751435480288,-490.0,0.00017798,2]
[369025394,1751435480298,-482.76479554,0.00017798,2]
[369025396,1751435480307,-490.0,0.00017798,2]
[369025398,1751435480317,-490.0,0.00017798,2]
[369025400,1751435480327,-490.0,0.00017798,2]
[369025402,1751435480336,-773.98,0.00017798,2]
[369025403,1751435480346,-490.0,0.00017798,2]
[369025405,1751435480355,-490.0,0.00017798,2]
[369025407,1751435480364,-490.0,0.00017798,2]
[369025409,1751435480373,-490.0,0.00017798,2]
[369025411,1751435480383,-558.0,0.00017798,2]
[369025413,1751435480393,-490.0,0.00017798,2]
[369025415,1751435480403,-490.0,0.00017798,2]
[369025417,1751435480415,-490.0,0.00017798,2]
[369025419,1751435480423,-378.86,0.00017798,2]
[369025421,1751435480433,-490.0,0.00017798,2]
[369025423,1751435480443,-752.64,0.00017798,2]
[369025425,1751435480453,-714.38,0.00017798,2]
[369025427,1751435480462,-490.0,0.00017798,2]
[369025429,1751435480471,-490.0,0.00017798,2]
[369025431,1751435480482,-490.0,0.00017798,2]
[369025433,1751435480491,-490.0,0.00017798,2]
[369025435,1751435480500,-490.0,0.00017798,2]
[369025437,1751435480510,-490.0,0.00017798,2]
[369025439,1751435480519,-1100.0,0.000178,6]
[369025441,1751435480529,-500.0,0.00017803,2]
[369025442,1751435480537,-910.17,0.00017803,2]
[369025444,1751435480546,-783.0,0.00017804,2]
[369025446,1751435480556,-1024.0,0.00017804,2]
[369025448,1751435480565,-526.0,0.00017804,2]
[369025450,1751435480574,-500.0,0.00017804,2]
[369025452,1751435480583,-500.0,0.00017804,2]
[369025454,1751435480593,-500.0,0.00017804,2]
[369025456,1751435480603,-347.08286067,0.00017809,2]
[369025458,1751435480611,-829.79464,0.0001781,2]
[369025460,1751435480621,-1000.0,0.00017821,2]
[369025462,1751435480630,-1000.0,0.00017821,2]
[369025464,1751435480640,-300.0,0.00017823,2]
[369025466,1751435480649,-250.0,0.00017823,2]
[369025467,1751435480658,-2500.0,0.00017823,2]
[369025469,1751435480667,-300.0,0.00017823,2]
[369025471,1751435480676,-2500.0,0.00017823,2]
[369025473,1751435480686,-974.24209411,0.00017868,2]
[369025475,1751435480697,-1500.0,0.00017868,2]
[369025477,1751435480709,-1500.0,0.00017868,2]
[369025479,1751435480719,-1400.0,0.000179,6]
[369025481,1751435480729,-381.47284175,0.0001796,2]
[369025483,1751435480739,-490.0,0.0001797,2]
[369025485,1751435480749,-948.79,0.0001797,2]
[369025487,1751435480758,-490.0,0.0001797,2]
[369025489,1751435480767,-490.0,0.0001797,2]
[369025490,1751435480776,-1268.36,0.0001797,2]
[369025491,1751435480786,-490.0,0.0001797,2]
[369025492,1751435480795,-1228.48,0.0001797,2]
[369025493,1751435480805,-2640.55,0.0001797,2]
[369025494,1751435480814,-792.82,0.0001797,2]
[369025495,1751435480824,-978.29,0.0001797,2]
[369025496,1751435480833,-1149.28,0.0001797,2]
[369025497,1751435480842,-564.58,0.0001797,2]
[369025498,1751435480852,-1568.17,0.0001797,2]
[369025499,1751435480862,-490.0,0.0001797,2]
[369025500,1751435480871,-1208.68,0.0001797,2]
[369025501,1751435480881,-1096.7,0.0001797,2]
[369025502,1751435480891,-490.0,0.0001797,2]
[369025503,1751435480901,-1037.89,0.0001797,2]
[369025504,1751435480912,-169.5484746,0.0001797,2]
[369025505,1751435480921,-490.0,0.0001797,2]
[369025507,1751435480931,-490.0,0.0001797,2]
[369025508,1751435480940,-490.0,0.0001797,2]
[369025510,1751435480950,-4946.03,0.0001797,2]
[369025512,1751435480959,-2933.77,0.0001797,2]
[369025513,1751435480969,-490.0,0.0001797,2]
[369025515,1751435480978,-490.0,0.0001797,2]
[369025517,1751435480988,-1336.35,0.0001797,2]
[369025519,1751435480998,-856.33,0.0001797,2]
[369025521,1751435481008,-801.86,0.0001797,2]
[369025523,1751435481017,-1266.76,0.0001797,2]
[369025525,1751435481027,-505.93,0.0001797,2]
[369025527,1751435481036,-490.0,0.00017971,2]
[369025529,1751435481045,-490.0,0.00017971,2]
[369025531,1751435481054,-490.0,0.00017971,2]
[369025533,1751435481063,-358.001105,0.00017971,2]
[369025535,1751435481073,-381.432735,0.00017971,2]
[369025537,1751435481082,-351.090626,0.00017971,2]
[369025539,1751435481092,-490.0,0.00017971,2]
[369025540,1751435481101,-490.0,0.00017971,2]
[369025542,1751435481110,-490.0,0.00017971,2]
[369025545,1751435481120,-609.29,0.00017971,2]
[369025546,1751435481129,-174.449132,0.00017971,2]
[369025548,1751435481139,-160.492796,0.00017971,2]
[369025550,1751435481148,-834.37,0.00017971,2]
[369025552,1751435481157,-545.38920001,0.00017971,2]
[369025554,1751435481167,-490.0,0.00017971,2]
[369025556,1751435481178,-158.143605,0.00017971,2]
[369025558,1751435481188,-490.0,0.00017971,2]
[369025561,1751435481197,-490.0,0.00017971,2]
[369025562,1751435481206,-490.0,0.00017971,2]
[369025564,1751435481216,-490.0,0.00017971,2]
[369025566,1751435481226,-700.69,0.00017971,2]
[369025568,1751435481235,-538.22,0.00017971,2]
[369025570,1751435481244,-490.0,0.00017971,2]
[369025572,1751435481254,-490.0,0.00017971,2]
[369025574,1751435481264,-650.13,0.00017971,2]
[369025576,1751435481274,-572.96,0.00017971,2]
[369025578,1751435481283,-490.0,0.00017971,2]
[369025580,1751435481294,-160.492792,0.00017971,2]
[369025582,1751435481303,-174.449129,0.00017971,2]
[369025584,1751435481313,-490.0,0.00017971,2]
[369025586,1751435481322,-490.0,0.00017971,2]
[369025588,1751435481332,-544.92,0.00017971,2]
[369025590,1751435481341,-669.78,0.00017971,2]
[369025592,1751435481350,-490.0,0.00017971,2]
[369025594,1751435481359,-490.0,0.00017971,2]
[369025596,1751435481369,-490.0,0.00017971,2]
[369025598,1751435481378,-490.0,0.00017971,2]
[369025600,1751435481388,-158.143604,0.00017971,2]
[369025602,1751435481398,-640.41,0.00017971,2]
[369025604,1751435481412,-490.0,0.00017971,2]
[369025606,1751435481422,-152.095992,0.00017971,2]
[369025608,1751435481431,-490.0,0.00017971,2]
[369025610,1751435481443,-490.0,0.00017971,2]
[369025612,1751435481452,-490.0,0.00017971,2]
[369025614,1751435481461,-1172.38,0.00017971,2]
[369025616,1751435481471,-490.0,0.00017971,2]
[369025618,1751435481480,-490.0,0.00017971,2]
[369025620,1751435481490,-730.58,0.00017971,2]
[369025622,1751435481500,-490.0,0.00017971,2]
[369025624,1751435481510,-657.04,0.00017971,2]
[369025626,1751435481520,-152.925671,0.00017971,2]
[369025628,1751435481530,-779.65,0.00017971,2]
[369025630,1751435481539,-490.0,0.00017971,2]
[369025632,1751435481548,-1065.23,0.00017971,2]
[369025634,1751435481558,-490.0,0.00017971,2]
[369025636,1751435481567,-775.16,0.00017971,2]
[369025637,1751435481576,-971.07,0.00017971,2]
[369025640,1751435481586,-490.0,0.00017971,2]
[369025641,1751435481595,-154.243991,0.00017971,2]
[369025643,1751435481604,-157.631366,0.00017971,2]
[369025645,1751435481613,-490.0,0.00017971,2]
[369025647,1751435481623,-531.52694936,0.00017971,2]
[369025649,1751435481632,-490.0,0.00017971,2]
[369025651,1751435481641,-490.0,0.00017971,2]
[369025653,1751435481651,-401.33,0.00017971,2]
[369025655,1751435481660,-490.0,0.00017971,2]
[369025657,1751435481669,-490.0,0.00017971,2]
[369025659,1751435481679,-490.0,0.00017971,2]
[369025661,1751435481688,-490.0,0.00017971,2]
[369025663,1751435481700,-490.0,0.00017971,2]
[369025665,1751435481710,-1133.01,0.00017971,2]
[369025667,1751435481720,-490.0,0.00017971,2]
[369025669,1751435481730,-490.0,0.00017971,2]
[369025671,1751435481739,-1197.94,0.00017971,2]